bitfinex-derivatives/quotes_ETHF0:USTF0_20250730
["timestamp","ask_amount","ask_price","bid_price","bid_amount"]
[1753891312414,2.20126154,3793.3,3793.2,2.7079]
[1753891312614,1.61326154,3793.3,3793.2,2.7079]
[1753891312919,2.14709,3793.1,3793.0,1.2368]
[1753891313115,2.73509,3793.1,3793.0,2.3546]
[1753891313313,2.73509,3793.1,3792.3,1.31845]
[1753891313519,2.73517,3792.5,3792.4,1.8561]
[1753891313815,2.2078,3792.5,3792.4,1.8561]
[1753891314016,2.2078,3792.5,3792.4,2.7079]
[1753891315222,2.14717,3792.4,3792.3,2.7079]
[1753891315716,1.6198,3792.4,3792.3,2.7079]
[1753891316024,0.52736,3792.6,3792.5,1.2891]
[1753891316215,2.73516,3792.6,3792.5,1.2891]
[1753891317423,2.73516,3792.6,3792.5,0.3583]
[1753891317624,2.73519,3792.3,3792.2,1.3075587]
[1753891319322,2.73519,3792.3,3792.2,0.0184587]
[1753891320427,2.73519,3792.3,3792.2,8.7e-06]
[1753891321522,1.36479,3792.3,3792.2,2.6658087]
[1753891321828,0.5339,3793.2,3792.4,0.3289]
[1753891322032,2.62266,3793.2,3793.1,1.2274]
[1753891322237,2.62266,3793.2,3793.1,2.3369]
[1753891322528,2.62266,3793.2,3793.1,0.3656]
[1753891322729,2.62266,3793.2,3793.1,0.7432]
[1753891322918,2.62266,3793.2,3793.1,1.2852]
[1753891323123,2.0954,3793.2,3792.2,8.7e-06]
[1753891323324,1.73829,3792.3,3792.2,2.6658087]
[1753891323627,2.62279,3792.3,3792.2,2.3369087]
[1753891323828,2.62279,3792.3,3792.2,2.6658087]
[1753891324219,1.35199,3792.3,3792.2,8.7e-06]
[1753891325719,1.35199,3792.3,3792.2,0.7432087]
[1753891325920,0.52739,3792.3,3792.2,1.2852087]
[1753891326127,2.08889,3792.3,3792.2,2.6658087]
[1753891326331,2.08889,3792.3,3792.2,0.7432087]
[1753891326332,1.35199,3792.3,3792.2,0.7432087]
[1753891326632,1.88589,3792.3,3792.2,1.8527087]
[1753891327025,2.62279,3792.3,3792.2,1.8527087]
[1753891327532,2.62279,3792.3,3792.2,0.7432087]
[1753891327730,2.62279,3792.3,3792.2,1.2852087]
[1753891327931,2.62279,3792.3,3792.2,1.8527087]
[1753891328133,1.35199,3792.3,3792.2,8.7e-06]
[1753891328730,1.00151,3791.4,3791.3,1.8527]
[1753891329035,1.35211,3791.4,3791.3,1.8527]
[1753891329230,2.08901,3791.4,3791.3,2.6658]
[1753891329441,0.52762,3790.7,3790.6,1.4293]
[1753891329630,0.52762,3790.7,3790.6,7.0983]
[1753891329833,0.52762,3790.7,3790.6,7.6658]
[1753891330129,0.52742,3792.1,3792.0,0.4842]
[1753891330433,0.52742,3792.1,3792.0,3.1061]
[1753891330630,1.35202,3792.1,3792.0,3.1061]
[1753891330828,2.82152,3792.1,3792.0,3.1061]
[1753891331229,1.71702,3792.1,3792.0,3.1061]
[1753891331635,2.82152,3792.1,3792.0,2.3369]
[1753891332032,3.55842,3792.1,3792.0,2.3369]
[1753891333038,0.5706,3792.1,3790.8,0.7692]
[1753891333330,0.3506,3791.9,3791.8,0.3776]
[1753891333637,3.55844,3791.9,3791.8,2.3369]
[1753891333826,3.55844,3791.9,3791.8,3.1061]
[1753891334335,2.45387,3792.4,3792.3,1.2274]
[1753891334633,0.7369,3792.7,3792.3,3.1061]
[1753891334832,0.77026163,3792.6,3792.5,1.2274]
[1753891335034,2.14127019,3793.2,3793.1,0.7432]
[1753891335326,0.52733,3792.8,3792.6,3.1061]
[1753891335532,0.77030795,3792.7,3792.6,1.2274]
[1753891335836,1.3196351,3793.2,3793.1,1.2274]
[1753891335837,3.55827,3793.2,3793.1,1.2274]
[1753891336039,4.3289064,3793.2,3793.1,3.1061]
[1753891336341,4.50833472,3793.2,3793.1,3.1061]
[1753891336535,4.3289064,3793.2,3793.1,3.1061]
[1753891336731,3.2244064,3793.2,3793.1,3.1061]
[1753891337036,2.8594064,3793.2,3793.1,3.1061]
[1753891337231,1.2446364,3793.2,3793.1,3.1061]
[1753891337432,0.7706364,3793.2,3793.1,3.1061]
[1753891338337,1.31826,3793.0,3791.9,0.52744]
[1753891338541,3.55839,3792.4,3792.3,0.7432]
[1753891338839,3.55839,3792.4,3790.4,2.63823]
[1753891338840,1.35209,3791.6,3791.5,2.5641]
[1753891339141,1.35209,3791.6,3791.5,3.1061]
[1753891339641,2.08899,3791.6,3791.5,3.1061]
[1753891340139,2.62289,3791.6,3791.5,3.1061]
[1753891340434,1.5615,3791.6,3791.5,3.1061]
[1753891340636,1.09806,3791.8,3791.5,1.2274]
[1753891340835,0.52746,3791.8,3791.7,3.1061]
[1753891341234,2.62286,3791.8,3791.7,3.1061]
[1753891341435,3.55846,3791.8,3791.7,3.1061]
[1753891341635,2.45396,3791.8,3791.7,3.1061]
[1753891341838,0.474,3791.8,3791.7,3.1061]
[1753891342041,1.5615,3791.8,3791.7,3.1061]
[1753891342245,2.0954,3791.8,3791.7,3.1061]
[1753891342441,3.031,3791.8,3791.7,3.1061]
[1753891343038,3.80443697,3791.8,3791.7,2.3369]
[1753891343945,3.80443697,3791.8,3791.7,3.1061]
[1753891344448,1.2431,3791.5,3791.4,1.7694]
[1753891344650,4.33193697,3791.5,3791.4,1.7694]
[1753891345544,4.33193697,3791.5,3791.4,2.3369]
[1753891345745,4.33256026,3791.5,3791.4,2.3369]
[1753891346949,4.33256026,3791.5,3791.4,3.1061]
[1753891347151,1.2708,3791.4,3790.8,1.1095]
[1753891347351,1.35218,3791.0,3790.9,1.2274]
[1753891347553,3.55858,3791.0,3790.9,3.1061]
[1753891347850,1.1045,3791.4,3790.9,3.1061]
[1753891348044,2.49090835,3791.3,3791.2,1.2274]
[1753891348241,4.33230835,3791.3,3791.2,1.7694]
[1753891348443,4.33230835,3791.3,3791.2,2.3369]
[1753891349043,4.33230835,3791.3,3791.2,1.2852]
[1753891349244,4.33230835,3791.3,3791.2,0.7432]
[1753891349444,3.59837,3791.0,3790.9,3.0867]
[1753891350046,3.59837,3791.0,3789.4,1.53752529]
[1753891350047,0.52766,3790.4,3790.3,3.0867]
[1753891350645,1.25666,3790.4,3790.3,2.3308]
[1753891350853,3.02356,3790.4,3790.3,2.3308]
[1753891351055,3.02356,3790.4,3790.3,3.0867]
[1753891351948,0.729,3790.8,3790.4,1.7705]
[1753891352154,1.566,3791.2,3791.1,3.0867]
[1753891352360,2.86625385,3791.2,3791.1,3.0867]
[1753891352549,4.37105385,3791.2,3791.1,3.0867]
[1753891353455,3.23855385,3791.2,3791.1,3.0867]
[1753891353652,0.729,3791.7,3791.1,3.0867]
[1753891353949,0.77255028,3791.6,3791.5,3.0867]
[1753891354355,1.85105028,3791.6,3791.5,3.0867]
[1753891354554,2.51808757,3791.6,3791.5,3.0867]
[1753891354748,1.66,3791.5,3791.2,1.8635]
[1753891354954,1.66,3791.5,3791.2,0.7387]
[1753891354955,3.0708,3791.3,3791.2,0.7387]
[1753891355151,3.84335028,3791.3,3791.2,2.3308]
[1753891355350,3.0708,3791.3,3791.2,2.3308]
[1753891356059,3.59838,3791.0,3790.9,0.7387]
[1753891356458,3.59838,3791.0,3790.9,2.3308]
[1753891356867,3.59838,3791.0,3790.9,1.3032]
[1753891357163,0.52768,3790.3,3790.2,1.206]
[1753891357352,0.52768,3790.3,3790.2,3.0867]
[1753891357549,0.5749,3790.6,3790.2,1.206]
[1753891357859,1.566,3790.5,3790.4,3.0867]
[1753891358052,0.52762,3790.7,3790.4,3.0867]
[1753891358253,0.52762,3790.7,3790.6,2.5264]
[1753891358452,0.52762,3790.7,3790.6,3.0867]
[1753891358662,3.59842,3790.7,3790.6,0.7387]
[1753891358961,1.73696,3790.4,3790.3,1.8635]
[1753891359260,3.59846,3790.4,3790.3,1.8635]
[1753891359957,2.46596,3790.4,3790.3,3.0867]
[1753891360156,0.94572214,3791.6,3790.3,5.0]
[1753891360459,3.59836,3791.1,3791.0,3.0867]
[1753891360757,1.31902,3790.8,3790.1,1.3204]
[1753891361057,3.59848,3790.2,3790.1,3.0867]
[1753891361259,3.59848,3790.2,3790.1,2.3308]
[1753891361560,1.36473,3789.9,3789.8,1.40125839]
[1753891361753,2.09373,3789.9,3789.8,3.28195839]
[1753891361953,1.566,3789.9,3789.8,3.28195839]
[1753891362461,1.31904,3790.8,3790.2,1.7663]
[1753891362462,1.566,3790.3,3790.2,1.7663]
[1753891362760,2.09367,3790.3,3790.2,1.7663]
[1753891362961,1.566,3790.3,3790.2,3.0867]
[1753891363163,0.837,3790.3,3790.2,3.0867]
[1753891363355,0.4875,3790.3,3790.2,3.0867]
[1753891363555,0.89996,3790.4,3790.3,2.3308]
[1753891363754,0.52766,3790.4,3790.3,3.0867]
[1753891364362,2.09366,3790.4,3790.3,3.0867]
[1753891364960,3.59846,3790.4,3790.3,3.0867]
[1753891365162,0.52772,3790.0,3789.8,0.19525839]
[1753891365465,1.2093,3789.5,3789.4,1.206]
[1753891365669,3.02368,3789.5,3789.4,3.0867]
[1753891365863,3.59858,3789.5,3789.4,3.0867]
[1753891366460,3.59861,3789.3,3789.2,3.10517331]
[1753891367564,2.46611,3789.3,3789.2,3.10517331]
[1753891368367,0.52781,3789.3,3789.2,3.10517331]
[1753891368665,2.31195,3789.7,3789.6,1.206]
[1753891368856,3.59855,3789.7,3789.6,3.0867]
[1753891369763,3.59855,3789.7,3789.6,1.8635]
[1753891369965,3.59855,3789.7,3789.6,2.3308]
[1753891370659,3.59855,3789.7,3789.6,0.7387]
[1753891371062,3.0708,3789.3,3789.2,0.01847331]
[1753891371260,3.0708,3789.3,3789.2,0.75717331]
[1753891371969,3.0708,3789.3,3789.2,3.10517331]
[1753891372161,3.0708,3789.3,3789.2,1.32167331]
[1753891372367,3.0708,3789.3,3789.2,0.75717331]
[1753891372562,3.0708,3789.3,3789.2,0.01847331]
[1753891374763,1.73724,3788.4,3788.3,1.206]
[1753891375070,3.59874,3788.4,3788.3,3.0867]
[1753891376167,3.59874,3788.4,3787.8,0.19536148]
[1753891376168,1.2093,3788.2,3788.1,1.206]
[1753891376467,1.9383,3788.2,3788.1,2.3308]
[1753891376864,2.6985,3788.4,3788.3,1.206]
[1753891377172,2.6985,3788.4,3788.3,3.0867]
[1753891377866,3.0708,3788.4,3788.3,3.0867]
[1753891378264,1.31963,3789.1,3788.6,3.0867]
[1753891378265,3.1112,3788.7,3788.6,3.0867]
[1753891378571,3.5987,3788.7,3788.6,2.3308]
[1753891378770,3.0708,3788.7,3788.6,3.0669]
[1753891379170,1.9383,3788.7,3788.6,3.0669]
[1753891379366,1.566,3788.7,3788.6,3.0669]
[1753891380371,1.9259,3788.7,3788.6,3.0669]
[1753891380566,1.5478,3788.8,3788.7,2.9568]
[1753891380964,0.98653,3789.2,3789.1,0.485]
[1753891381165,3.50833,3789.2,3789.1,2.9568]
[1753891381460,0.7278,3789.9,3788.9,1.7678]
[1753891381659,0.52775,3789.8,3789.3,0.5278]
[1753891381865,1.7055,3789.9,3789.1,0.5161]
[1753891381866,0.4587,3789.2,3789.1,0.5161]
[1753891382168,2.9805,3789.2,3789.1,2.9568]
[1753891382961,2.9805,3789.2,3789.1,1.2201]
[1753891383165,2.9805,3789.2,3789.1,0.704]
[1753891383368,2.9805,3789.2,3788.8,1.7678]
[1753891383573,1.1799,3788.9,3788.8,2.9568]
[1753891383776,3.50837,3788.9,3788.8,0.704]
[1753891384073,2.9805,3788.6,3788.5,2.2207]
[1753891384973,2.9805,3788.6,3788.5,2.9568]
[1753891385374,2.9805,3788.6,3788.5,1.7046]
[1753891385573,2.9805,3788.6,3788.5,0.704]
[1753891386074,0.7278,3788.8,3788.5,2.9568]
[1753891386270,0.52789,3788.8,3788.6,1.189]
[1753891386471,2.07563,3789.2,3789.1,2.9568]
[1753891386673,2.4333,3789.2,3789.1,2.9568]
[1753891386865,1.9077,3789.2,3789.1,2.9568]
[1753891387068,1.0728,3789.5,3789.1,2.9568]
[1753891387268,0.52779,3789.5,3789.4,2.9568]
[1753891387473,0.52778,3789.6,3789.4,2.9568]
[1753891387675,2.78046,3789.7,3789.6,2.9568]
[1753891388373,3.50826,3789.7,3789.6,2.2207]
[1753891388575,0.9865,3789.4,3789.3,2.4407]
[1753891388779,3.5083,3789.4,3789.3,2.9568]
[1753891389279,2.9805,3789.4,3789.3,2.9568]
[1753891389671,1.9077,3789.4,3789.3,2.9568]
[1753891389872,2.07558,3789.6,3789.5,1.189]
[1753891390073,2.07558,3789.6,3789.5,2.9568]
[1753891390280,3.50828,3789.6,3789.5,2.9568]
[1753891390586,2.9805,3789.6,3789.5,2.9568]
[1753891391276,2.9805,3789.3,3789.2,1.2196]
[1753891391472,0.52781,3789.3,3789.2,1.2196]
[1753891391673,2.96111,3789.3,3789.2,2.9568]
[1753891391879,3.50831,3789.3,3789.2,2.9568]
[1753891392777,2.9805,3789.3,3789.2,2.9568]
[1753891393186,0.82,3789.3,3789.2,2.9568]
[1753891393375,1.05338,3789.6,3789.2,1.71682]
[1753891393574,1.5478,3789.5,3789.4,2.0885]
[1753891393876,1.5478,3789.5,3789.4,2.9568]
[1753891394470,0.5256,3790.3,3789.5,0.5161]
[1753891394779,1.9657832,3790.7,3790.1,2.9568]
[1753891394780,0.95823432,3790.2,3790.1,2.9568]
[1753891395175,0.18205663,3790.2,3790.1,2.9568]
[1753891395471,3.50825,3789.7,3789.6,2.2207]
[1753891396077,3.50825,3789.7,3789.6,2.9568]
[1753891397176,1.1799,3789.4,3789.3,1.9251]
[1753891397481,2.9805,3789.4,3789.3,1.9251]
[1753891397677,0.98646,3789.7,3789.6,0.485]
[1753891397871,3.50826,3789.7,3789.6,2.9568]
[1753891398280,1.9077,3789.7,3789.6,2.9568]
[1753891398682,2.4333,3789.7,3789.6,2.9568]
[1753891399086,2.9805,3789.7,3789.6,2.9568]
[1753891399582,2.9805,3789.7,3789.6,2.2207]
[1753891400179,3.50831,3789.3,3789.2,2.2207]
[1753891400383,3.50831,3789.3,3789.2,0.704]
[1753891400584,0.52779,3789.5,3789.2,2.9568]
[1753891400781,3.50827,3789.7,3789.6,2.9568]
[1753891400976,0.52775,3789.8,3789.6,2.9568]
[1753891401282,1.7076,3790.1,3790.0,2.9568]
[1753891401579,1.3477,3790.1,3790.0,2.9568]
[1753891401780,0.5277,3790.1,3790.0,2.9568]
[1753891401977,0.52769,3790.2,3790.1,1.9251]
[1753891402182,0.52769,3790.2,3790.1,2.9568]
[1753891402383,2.07549,3790.2,3790.1,2.9568]
[1753891402679,2.43539,3790.2,3790.1,2.9568]
[1753891402884,2.96099,3790.2,3790.1,2.9568]
[1753891403182,3.69058263,3790.2,3790.1,2.9568]
[1753891403378,3.69058263,3790.2,3790.1,0.704]
[1753891403784,3.69058263,3790.2,3790.1,2.2207]
[1753891404580,0.18239263,3790.2,3790.1,2.9568]
[1753891404782,1.9077,3790.7,3790.6,1.189]
[1753891405084,0.4278183,3790.7,3790.6,2.9568]
[1753891405384,0.21067127,3790.7,3790.6,8.48443]
[1753891405585,3.50801,3791.5,3791.4,2.1186]
[1753891405982,2.4549,3791.5,3791.4,2.8547]
[1753891406181,2.32807,3791.8,3791.4,2.8547]
[1753891406376,2.0936,3791.7,3791.6,0.8377]
[1753891406585,2.9805,3791.7,3791.6,2.8547]
[1753891407382,2.9805,3791.7,3791.6,0.3513]
[1753891407978,2.1619,3791.7,3791.3,0.5161]
[1753891408184,1.8006,3791.6,3790.8,1.1496]
[1753891408383,1.1799,3791.2,3791.1,1.189]
[1753891408581,0.5276,3790.9,3790.8,0.3529]
[1753891408792,0.52764,3790.6,3790.2,0.5579]
[1753891408981,1.8966,3790.3,3790.2,2.8839]
[1753891409281,2.4436,3790.4,3790.3,1.1895]
[1753891409488,2.4436,3790.4,3790.3,1.7474]
[1753891409686,2.9551,3790.4,3790.3,1.7474]
[1753891409992,2.9551,3790.4,3790.3,1.2888]
[1753891410387,2.9551,3790.4,3790.3,0.9108]
[1753891410984,2.9551,3790.4,3790.3,0.3529]
[1753891411889,1.31906,3790.7,3790.1,0.7701]
[1753891411890,2.9551,3790.2,3790.1,0.7701]
[1753891412585,2.9551,3790.2,3790.1,1.7866]
[1753891412785,2.9551,3790.2,3790.1,1.3694]
[1753891412982,2.9551,3790.2,3790.1,0.3529]
[1753891413385,2.9551,3790.2,3789.5,0.7309]
[1753891413386,1.1931,3789.6,3789.5,0.7309]
[1753891413687,2.4436,3789.6,3789.5,1.9088]
[1753891414088,2.4436,3789.6,3789.5,2.8839]
[1753891414288,2.9551,3789.6,3789.5,2.8839]
[1753891418391,0.3673,3789.6,3789.5,2.8839]
[1753891418592,0.52776,3789.7,3789.1,1.31958]
[1753891418789,0.52776,3789.7,3789.6,2.8839]
[1753891419088,2.4436,3789.8,3789.7,2.8839]
[1753891419292,1.31908,3790.6,3789.7,2.8839]
[1753891419493,0.3673,3790.3,3790.2,2.8839]
[1753891419697,1.1931,3790.3,3790.2,2.8839]
[1753891419894,2.4436,3790.3,3790.2,2.8839]
[1753891420094,2.9551,3790.3,3790.2,2.8839]
[1753891420488,2.2269,3790.0,3789.9,0.3529]
[1753891420697,0.3609,3789.5,3789.4,0.7701]
[1753891420896,0.52776,3789.7,3789.5,1.1365]
[1753891421096,1.72086,3789.7,3789.6,1.1895]
[1753891421297,2.9551,3789.7,3789.6,2.8839]
[1753891421497,2.4436,3789.7,3789.6,2.8839]
[1753891421801,2.9551,3790.0,3789.9,1.7474]
[1753891422002,2.9551,3790.4,3790.3,2.8839]
[1753891422300,1.1931,3790.4,3790.3,2.8839]
[1753891422502,2.9551,3790.8,3790.7,2.8839]
[1753891422691,1.8966,3790.8,3790.7,2.8839]
[1753891423095,2.4436,3790.8,3790.7,2.8839]
[1753891423499,2.4436,3790.9,3790.8,0.3529]
[1753891423699,3.48269,3790.9,3790.8,0.3529]
[1753891423904,39.32278,3791.5,3790.5,2.1646]
[1753891423905,2.9551,3790.6,3790.5,2.1646]
[1753891424102,1.8966,3790.6,3790.5,2.8839]
[1753891424898,2.4436,3790.6,3790.5,2.8839]
[1753891425098,1.1931,3790.3,3790.2,1.6067]
[1753891425299,1.72072,3790.7,3790.6,0.8115]
[1753891425499,1.72072,3790.7,3790.6,2.8839]
[1753891425696,1.72072,3790.7,3790.6,0.3529]
[1753891426001,2.4436,3790.7,3790.6,2.8839]
[1753891426306,2.9551,3790.7,3790.6,2.8839]
[1753891426905,2.9551,3790.7,3790.6,2.1646]
[1753891427104,1.215,3791.0,3790.6,2.8839]
[1753891427296,0.52748,3791.7,3790.8,1.31901]
[1753891427496,3.01712639,3791.6,3791.5,1.1895]
[1753891427701,3.01712639,3791.6,3791.5,2.1646]
[1753891427902,3.01712639,3791.6,3790.5,1.3191]
[1753891427903,1.319,3790.9,3788.1,2.63985]
[1753891428101,3.48277,3790.4,3790.3,1.2888]
[1753891428407,2.9551,3790.4,3790.3,1.7474]
[1753891428610,2.9551,3790.4,3790.3,2.8839]
[1753891429107,2.9551,3790.4,3790.3,1.7474]
[1753891429406,2.9551,3790.4,3790.3,0.9108]
[1753891429906,1.31916,3790.4,3788.8,1.31969]
[1753891430205,2.4436,3789.9,3789.8,0.9108]
[1753891430402,2.41839,3790.2,3790.1,0.8366]
[1753891430600,2.77929,3790.2,3790.1,2.8839]
[1753891430909,2.26779,3790.2,3790.1,2.8839]
[1753891431104,2.97129,3790.2,3790.1,2.8839]
[1753891431307,3.48279,3790.2,3790.1,2.8839]
[1753891434506,1.72081,3790.1,3790.0,0.4586]
[1753891434710,3.48281,3790.1,3790.0,2.8839]
[1753891439218,2.9551,3790.1,3790.0,2.8839]
[1753891439413,0.52768,3790.3,3790.2,0.712]
[1753891439610,0.52768,3790.3,3790.2,2.8106]
[1753891440210,2.9519,3790.8,3790.7,0.346]
[1753891440423,2.25175,3791.2,3791.1,1.1634]
[1753891440710,3.46365,3791.2,3791.1,0.346]
[1753891440910,1.1984,3790.6,3790.5,1.33764]
[1753891441112,2.9361,3790.6,3790.5,1.69104]
[1753891441414,2.9361,3790.6,3790.5,3.33824]
[1753891442313,2.9361,3790.6,3790.5,0.346]
[1753891442913,2.9361,3790.6,3790.5,1.3474]
[1753891443118,2.9361,3790.6,3790.5,0.346]
[1753891443510,0.52753,3791.4,3790.8,1.1098]
[1753891443713,0.7319,3791.5,3791.4,1.69092]
[1753891443913,0.7001,3791.7,3791.4,1.69092]
[1753891444108,1.7377,3791.4,3789.8,1.348]
[1753891444310,2.9361,3790.7,3790.6,0.81]
[1753891444512,2.9361,3790.7,3790.6,0.346]
[1753891444717,2.9361,3790.7,3790.6,1.7008]
[1753891444917,2.9361,3790.7,3790.6,2.8106]
[1753891445718,2.9361,3790.7,3790.4,0.52765]
[1753891445719,1.1984,3790.3,3790.2,1.69109]
[1753891445914,2.4243,3790.3,3790.2,3.33829]
[1753891446114,2.9361,3790.3,3790.2,3.33829]
[1753891446619,2.4243,3790.3,3790.2,3.33829]
[1753891447020,2.9361,3790.3,3790.2,3.33829]
[1753891447516,1.8985,3790.3,3790.2,3.33829]
[1753891447711,1.1984,3790.3,3790.2,3.33829]
[1753891449917,1.1984,3790.3,3790.2,2.8106]
[1753891450123,1.8985,3790.3,3790.2,2.8106]
[1753891450323,0.52767,3790.3,3790.0,0.5277]
[1753891450521,0.52769,3790.2,3790.0,0.5277]
[1753891450725,2.9361,3790.1,3790.0,3.3383]
[1753891450922,2.9361,3790.1,3790.0,2.8106]
[1753891451122,1.7377,3790.1,3789.7,1.23975]
[1753891451319,2.236,3789.8,3789.7,2.80095]
[1753891451518,2.9361,3789.8,3789.7,2.80095]
[1753891451915,2.9361,3789.8,3789.7,2.8106]
[1753891453820,0.52774,3789.9,3789.8,3.33834]
[1753891454021,2.42624,3789.9,3789.8,2.8106]
[1753891454221,2.95204,3789.9,3789.8,2.8106]
[1753891454815,3.46384,3789.9,3789.8,2.8106]
[1753891455128,1.72618,3789.5,3789.4,2.62639]
[1753891455422,0.3707,3789.5,3789.4,3.33839]
[1753891455625,1.8985,3789.8,3789.7,1.69115]
[1753891455822,2.4243,3789.8,3789.7,3.33835]
[1753891456015,2.9361,3789.8,3789.7,2.8106]
[1753891456620,0.52772,3790.0,3789.8,0.52774]
[1753891456821,1.72604,3790.5,3790.4,1.1634]
[1753891457022,1.72604,3790.5,3790.4,2.8106]
[1753891457418,2.29714,3790.5,3790.4,2.8106]
[1753891457623,3.46374,3790.5,3790.4,2.8106]
[1753891460928,2.9361,3790.5,3790.4,2.8106]
[1753891461128,1.8985,3790.5,3790.4,2.8106]
[1753891461327,2.4243,3790.5,3790.4,2.8106]
[1753891461521,2.9361,3790.5,3790.4,2.8106]
[1753891462432,2.9361,3790.5,3790.4,1.3474]
[1753891462731,2.9361,3790.5,3790.4,0.346]
[1753891463322,1.72608,3790.2,3790.1,1.7452]
[1753891463531,2.9361,3789.9,3789.8,0.8834]
[1753891463930,2.9361,3789.9,3789.8,1.2812]
[1753891464134,2.9361,3789.9,3789.8,1.7452]
[1753891464442,2.9361,3789.9,3789.8,1.3474]
[1753891465031,2.9361,3789.9,3789.8,1.7008]
[1753891465223,2.9361,3789.9,3789.8,2.8106]
[1753891465630,2.4243,3790.2,3790.1,3.33829]
[1753891465829,0.8372,3790.2,3790.1,2.8106]
[1753891466030,2.9361,3790.2,3790.1,2.8106]
[1753891466333,2.9361,3790.2,3790.1,2.0986]
[1753891466532,2.9361,3790.2,3790.1,2.8106]
[1753891467923,2.9361,3790.2,3790.1,1.7008]
[1753891468534,2.9361,3790.2,3790.1,2.7407]
[1753891469435,1.4044,3790.0,3789.9,0.52772]
[1753891469737,2.8894,3790.0,3789.9,0.86982]
[1753891470036,1.1342,3789.8,3789.7,1.40605]
[1753891470234,2.8894,3789.8,3789.7,1.40605]
[1753891471038,2.8894,3789.8,3789.7,1.87455]
[1753891471225,2.8894,3789.8,3789.7,0.86985]
[1753891471828,2.8894,3789.8,3789.7,0.3421]
[1753891472037,1.1342,3789.4,3789.3,1.4061]
[1753891472236,2.8894,3789.4,3789.3,1.4061]
[1753891472426,2.8894,3789.4,3789.3,3.2631]
[1753891472829,2.8894,3789.1,3789.0,5.54230965]
[1753891473029,2.8894,3789.1,3789.0,6.58220965]
[1753891473231,2.8894,3789.1,3789.0,3.26315]
[1753891473935,0.7822,3789.1,3789.0,3.26315]
[1753891474134,2.8894,3789.4,3789.3,1.68701]
[1753891474334,2.8894,3789.4,3789.3,3.26311]
[1753891474535,1.1342,3789.4,3789.3,3.26311]
[1753891475036,1.837,3789.4,3789.3,3.26311]
[1753891475940,2.3435,3789.4,3789.3,3.26311]
[1753891476140,2.8894,3789.4,3789.3,3.26311]
[1753891477730,2.87123,3789.9,3789.8,2.1991]
[1753891477936,2.8894,3789.9,3789.8,3.26304]
[1753891478635,2.3435,3789.9,3789.8,3.26304]
[1753891479032,0.5459,3790.2,3789.8,3.26304]
[1753891479234,2.8894,3790.4,3790.3,2.25307]
[1753891479633,3.41707,3790.3,3790.2,0.8783]
[1753891479837,2.8894,3790.0,3789.9,0.8783]
[1753891480039,2.3435,3790.0,3789.9,0.8106]
[1753891480228,2.3435,3790.0,3789.7,1.1975]
[1753891480229,2.8894,3789.8,3789.7,2.25965]
[1753891480434,2.8894,3789.8,3789.7,1.40605]
[1753891480836,2.8894,3789.8,3789.7,2.25315]
[1753891481036,2.8894,3789.8,3789.7,2.60175]
[1753891481237,2.8894,3789.8,3789.7,3.26305]
[1753891481840,2.8894,3789.8,3789.7,2.60175]
[1753891482439,2.8894,3789.8,3789.7,3.26305]
[1753891484335,2.8894,3789.8,3789.7,2.60175]
[1753891484836,2.8894,3789.8,3789.7,0.52775]
[1753891485237,2.8894,3789.8,3789.7,0.3421]
[1753891485840,2.8894,3789.4,3789.3,2.7353]
[1753891486037,2.8894,3789.4,3789.3,3.26311]
[1753891486850,0.3299,3789.7,3789.6,3.26307]
[1753891487140,1.837,3790.1,3790.0,3.26301]
[1753891487339,0.6819,3790.3,3790.2,3.26298]
[1753891487641,0.52768,3790.2,3790.0,0.5277]
[1753891487841,2.8894,3789.8,3789.7,2.7353]
[1753891488041,2.8894,3789.8,3789.7,0.3421]
[1753891488447,2.8894,3789.7,3789.6,0.52776]
[1753891488746,2.8894,3789.7,3789.6,0.86986]
[1753891488936,1.6407,3789.9,3789.8,2.00613]
[1753891489139,2.3435,3789.9,3789.8,2.7353]
[1753891489343,2.8894,3789.9,3789.5,0.52777]
[1753891489548,1.31922,3790.2,3789.5,0.3421]
[1753891489549,3.41717,3789.6,3789.5,0.3421]
[1753891490041,0.5065,3789.5,3788.7,1.348]
[1753891490240,2.3435,3788.9,3788.8,2.88458]
[1753891490743,2.3435,3788.9,3788.8,3.26318]
[1753891491540,2.8894,3789.1,3789.0,2.7353]
[1753891492451,2.8894,3789.0,3788.9,1.53256]
[1753891492752,2.8894,3789.0,3788.9,3.26316]
[1753891493552,2.8894,3789.0,3788.9,2.7353]
[1753891493747,2.8894,3788.7,3788.6,4.61119]
[1753891493948,2.8894,3788.7,3788.6,3.26319]
[1753891494854,2.3435,3788.7,3788.6,3.26319]
[1753891495056,1.837,3788.7,3788.6,3.26319]
[1753891495255,2.8894,3789.0,3788.9,3.26317]
[1753891495752,0.52783,3789.2,3789.1,0.52783]
[1753891495958,3.41723,3789.2,3789.1,3.26313]
[1753891496160,2.8894,3789.2,3789.1,3.26313]
[1753891496554,0.7028,3789.5,3789.4,0.3486]
[1753891496761,1.1342,3789.5,3789.4,3.2631]
[1753891497058,1.1342,3789.9,3789.8,1.3468]
[1753891497251,1.1342,3789.9,3789.0,1.31961]
[1753891497252,2.8894,3789.2,3789.1,2.60184]
[1753891497458,2.8894,3789.2,3789.1,1.40614]
[1753891498062,1.31936,3789.8,3788.8,2.35961]
[1753891498063,1.1342,3789.0,3788.9,0.86996]
[1753891498259,2.8894,3789.0,3788.8,0.52788]
[1753891498459,1.7552,3788.9,3788.8,0.86998]